bitfinex/quotes_SOLUSD_20240908
["timestamp","ask_amount","ask_price","bid_price","bid_amount"]
[1725834158776,7.88020753,131.17,131.05,41.3043543]
[1725834158927,61.3822,131.16,131.05,41.3043543]
[1725834159213,21.65750753,131.15,131.02,41.3043543]
[1725834159418,6.1022,131.1,130.99,41.3043543]
[1725834159601,72.76020753,131.09,130.96,42.83079958]
[1725834159792,6.2227,131.08,130.96,41.3043543]
[1725834160111,1.65750753,131.07,130.96,41.3043543]
[1725834160328,22.7062,131.06,130.96,41.3043543]
[1725834160490,22.7062,131.06,130.9,55.70708884]
[1725834160491,7.76210753,131.05,130.93,41.3043543]
[1725834160693,16.6021,131.06,130.9,41.3043543]
[1725834160694,27.76250753,131.04,130.9,41.3043543]
[1725834160891,51.1055,131.03,130.84,9.5019891]
[1725834161095,1.65750753,131.02,130.9,41.3043543]
[1725834161393,20.0,131.02,130.9,41.3043543]
[1725834161614,1.65750753,131.01,130.9,41.3043543]
[1725834161823,21.65750753,131.02,130.9,41.3043543]
[1725834162006,20.0,131.02,130.91,1.52727585]
[1725834162192,1.65750753,131.03,130.93,41.3043543]
[1725834162514,22.7063,131.06,130.93,41.3043543]
[1725834162515,21.65750753,131.05,130.93,41.3043543]
[1725834162717,21.65750753,131.05,130.95,41.3043543]
[1725834163190,20.0,131.05,130.95,41.3043543]
[1725834163394,1.65750753,131.04,130.95,41.3043543]
[1725834163595,16.6021,131.06,130.97,41.3043543]
[1725834165139,1.65750753,131.05,130.95,41.3043543]
[1725834165310,16.6021,131.06,130.95,41.3043543]
[1725834165607,16.6021,131.06,130.97,41.3043543]
[1725834166027,1.65750753,131.05,130.97,41.3043543]
[1725834166195,16.6021,131.06,130.97,41.3043543]
[1725834166533,16.6021,131.06,130.99,41.3043543]
[1725834166693,16.6021,131.06,131.01,41.3043543]
[1725834166894,16.4733,131.12,131.01,41.3043543]
[1725834167100,18.13080753,131.12,131.01,41.3043543]
[1725834167713,6.1032,131.08,130.95,41.3043543]
[1725834168277,16.4733,131.12,130.95,41.3043543]
[1725834168278,6.1036,131.07,130.95,41.3043543]
[1725834168392,18.13080753,131.12,130.99,41.3043543]
[1725834168595,26.1022,131.11,130.99,41.3043543]
[1725834168816,20.0,131.11,130.99,41.3043543]
[1725834169007,1.65750753,131.1,130.99,41.3043543]
[1725834169424,7.75970753,131.1,130.99,41.3043543]
[1725834169627,20.0,131.09,130.99,41.3043543]
[1725834169930,20.0,131.09,130.97,41.3043543]
[1725834170232,1.65750753,131.1,130.97,41.3043543]
[1725834170404,52.75970753,131.1,130.97,41.3043543]
[1725834170596,20.0,131.09,130.97,41.3043543]
[1725834171935,20.0,131.09,130.97,42.83076283]
[1725834172174,0.5744535,131.11,131.01,41.3043543]
[1725834172442,0.5744535,131.11,131.03,41.3043543]
[1725834172628,0.5744535,131.11,131.04,1.52577832]
[1725834172918,0.5744535,131.11,131.03,41.3043543]
[1725834173603,0.5744535,131.11,131.05,41.3043543]
[1725834173799,0.5744535,131.11,131.07,41.3043543]
[1725834174106,0.5744535,131.11,131.05,1.5255096]
[1725834174107,0.5744535,131.11,131.09,41.3043543]
[1725834174322,22.0899,131.18,131.1,1.5249462]
[1725834174662,0.8501875,131.22,131.13,41.3043543]
[1725834175328,0.8501875,131.22,131.13,42.82877783]
[1725834175703,0.8501875,131.22,131.16,41.3043543]
[1725834176525,0.8501875,131.22,131.14,41.3043543]
[1725834176904,0.8501875,131.22,131.15,1.52466037]
[1725834177101,0.8501875,131.22,131.16,41.3043543]
[1725834177420,0.8501875,131.22,131.16,42.82875483]
[1725834177901,0.8501875,131.22,131.16,41.3043543]
[1725834178406,0.8501875,131.22,131.09,1.52435676]
[1725834178407,0.8501875,131.22,131.14,41.3043543]
[1725834179323,0.8501875,131.22,131.16,41.3043543]
[1725834179508,0.8501875,131.22,131.14,41.3043543]
[1725834180429,0.8501875,131.22,131.12,41.3043543]
[1725834180636,0.8501875,131.22,131.14,41.3043543]
[1725834181704,0.8501875,131.22,131.16,41.3043543]
[1725834181909,0.8501875,131.22,131.14,41.3043543]
[1725834182165,2.50769503,131.22,131.12,41.3043543]
[1725834182302,8.60429503,131.22,131.12,41.3043543]
[1725834182610,2.50769503,131.22,131.1,41.3043543]
[1725834182926,20.0,131.21,131.12,41.3043543]
[1725834183727,1.65750753,131.2,131.1,41.3043543]
[1725834184221,27.75460753,131.21,131.1,41.3043543]
[1725834184428,20.0,131.21,131.12,41.3043543]
[1725834184725,1.65750753,131.2,131.1,41.3043543]
[1725834184927,1.65750753,131.2,131.06,41.3043543]
[1725834185113,6.1004,131.14,131.02,41.3043543]
[1725834185315,31.19885958,131.19,131.02,41.3043543]
[1725834185316,7.75830753,131.13,131.02,41.3043543]
[1725834185538,1.65750753,131.12,131.02,41.3043543]
[1725834185901,6.1002,131.15,131.03,1.52599437]
[1725834186101,20.0,131.14,131.06,41.3043543]
[1725834186354,1.65750753,131.13,131.04,41.3043543]
[1725834186742,1.65750753,131.13,131.02,41.3043543]
[1725834186953,72.372,131.19,131.08,41.3043543]
[1725834186954,24.02950753,131.19,131.08,41.3043543]
[1725834187146,22.372,131.19,131.1,41.3043543]
[1725834187510,22.372,131.19,131.12,41.3043543]
[1725834187718,22.372,131.19,131.14,41.3043543]
[1725834188706,22.372,131.19,131.12,41.3043543]
[1725834188903,22.372,131.19,131.06,45.0]
[1725834188904,22.372,131.19,131.1,41.3043543]
[1725834189535,22.372,131.19,131.11,1.52517669]
[1725834189812,22.372,131.19,131.12,41.3043543]
[1725834189918,0.8501875,131.22,131.14,41.3043543]
[1725834191223,2.50769503,131.22,131.1,41.3043543]
[1725834191446,6.0971,131.21,131.1,41.3043543]
[1725834191613,7.75510753,131.2,131.1,41.3043543]
[1725834191822,7.75510753,131.2,131.08,41.3043543]
[1725834191823,6.098,131.19,131.08,41.3043543]
[1725834192221,6.098,131.19,131.02,1.5251584]
[1725834192222,6.0995,131.16,131.02,41.3043543]
[1725834192522,21.4119,131.17,131.02,41.3043543]
[1725834192523,52.75770753,131.15,131.02,41.3043543]
[1725834192719,23.06940753,131.17,131.04,41.3043543]
[1725834192862,21.4119,131.17,131.06,41.3043543]
[1725834193016,21.4119,131.17,131.07,1.52530615]
[1725834193214,21.4119,131.17,131.08,42.82961153]
[1725834193913,1.65750753,131.16,131.04,41.3043543]
[1725834194132,6.0999,131.15,131.02,41.3043543]
[1725834194440,21.4119,131.17,131.02,41.3043543]
[1725834194441,1.65750753,131.14,131.02,41.3043543]
[1725834194738,21.65750753,131.16,131.04,41.3043543]
[1725834195131,1.65750753,131.16,131.04,41.3043543]
[1725834195335,21.4119,131.17,131.05,1.52560896]
[1725834195538,7.75700753,131.16,131.04,41.3043543]
[1725834196032,6.1004,131.14,131.02,41.3043543]
[1725834196045,46.65750753,131.15,131.03,1.39546622]
[1725834196221,1.65750753,131.15,131.04,41.3043543]
[1725834196411,1.65750753,131.14,131.04,41.3043543]
[1725834196614,6.1008,131.13,131.01,1.52569612]
[1725834196840,1.65750753,131.12,131.0,41.3043543]
[1725834197224,1.65750753,131.12,131.01,21.52596158]
[1725834197428,65.0,131.16,131.01,21.52596158]
[1725834197429,1.65750753,131.15,131.02,42.83029253]
[1725834197739,1.65750753,131.15,131.04,41.3043543]
[1725834197933,21.4119,131.17,131.06,41.3043543]
[1725834198605,21.4119,131.17,131.07,1.52544768]
[1725834198838,21.4119,131.17,131.08,42.82974072]
[1725834199336,1.65750753,131.16,131.06,41.3043543]
[1725834199923,21.4119,131.17,131.07,1.52552606]
[1725834200137,21.4119,131.17,131.08,42.82967307]
[1725834200837,1.65750753,131.16,131.06,41.3043543]
[1725834201217,24.76750753,131.16,131.02,41.3043543]
[1725834201421,20.0,131.15,131.03,1.52590846]
[1725834201654,1.65750753,131.14,131.02,41.3043543]
[1725834201828,52.75790753,131.14,131.02,41.3043543]
[1725834202023,6.2483,131.12,130.98,41.3043543]
[1725834202233,66.65750753,131.11,130.98,41.3043543]
[1725834202438,1.65750753,131.1,130.98,41.3043543]
[1725834202976,6.1031,131.08,130.96,41.3043543]
[1725834203152,1.65750753,131.07,130.96,41.3043543]
[1725834203328,6.1031,131.08,130.96,41.3043543]
[1725834203329,7.76060753,131.08,130.96,41.3043543]
[1725834203642,23.14930753,131.09,130.98,41.3043543]
[1725834203852,20.0,131.08,130.98,41.3043543]
[1725834204021,15.3892,131.09,130.98,41.3043543]
[1725834204227,1.65750753,131.08,130.96,41.3043543]
[1725834204423,1.65750753,131.08,130.94,42.63261732]
[1725834204424,7.76110753,131.07,130.94,42.63261732]
[1725834204627,20.0,131.06,130.94,42.63261732]
[1725834204953,1.65750753,131.05,130.94,44.15937061]
[1725834205325,20.0,131.06,130.94,44.15937061]
[1725834205486,21.4921,131.09,130.96,41.3043543]
[1725834205756,6.1045,131.05,130.94,42.63261732]
[1725834205923,7.76160753,131.06,130.94,41.3043543]
[1725834206126,20.0,131.05,130.95,1.52673617]
[1725834206529,20.0,131.05,130.96,1.52689216]
[1725834206831,52.76060753,131.08,130.96,42.83124646]
[1725834207175,20.0,131.07,130.96,42.83124646]
[1725834207322,45.0,131.06,130.96,42.83124646]
[1725834207524,45.0,131.06,130.97,1.52677408]
[1725834208532,15.3892,131.09,130.98,41.3043543]
[1725834208737,15.3892,131.09,131.02,41.3043543]
[1725834209143,15.3892,131.09,131.03,1.52612067]
[1725834209351,15.3892,131.09,131.02,41.3043543]
[1725834209755,15.3892,131.09,131.03,1.52594594]
[1725834209941,15.4544,131.15,131.04,41.3043543]
[1725834210450,1.65750753,131.14,131.04,41.3043543]
[1725834210627,15.4544,131.15,131.04,41.3043543]
[1725834210828,1.65750753,131.14,131.04,41.3043543]
[1725834211450,15.4544,131.15,131.04,41.3043543]
[1725834212197,15.4544,131.15,131.06,41.3043543]
[1725834213041,1.65750753,131.14,131.04,41.3043543]
[1725834213367,15.4544,131.15,131.05,1.52582758]
[1725834213735,15.4544,131.15,131.06,41.3043543]
[1725834213927,15.4544,131.15,131.08,41.3043543]
[1725834214955,15.4544,131.15,131.09,1.5253239]
[1725834215155,15.4544,131.15,131.08,41.3043543]
[1725834215371,15.4544,131.15,131.06,41.3043543]
[1725834215531,1.65750753,131.14,131.04,41.3043543]
[1725834215743,15.4544,131.15,131.05,1.52572121]
[1725834216044,15.4544,131.15,131.08,41.3043543]
[1725834216552,15.4544,131.15,131.1,41.3043543]
[1725834216755,15.4544,131.15,131.01,10.0]
[1725834216756,15.4544,131.15,131.02,1.52503451]
[1725834216931,15.4544,131.15,131.08,41.3043543]
[1725834217364,6.5901,131.17,131.04,41.3043543]
[1725834217365,6.5901,131.17,131.1,41.3043543]
[1725834217543,6.5901,131.17,131.11,1.52486172]
[1725834217741,6.5901,131.17,131.1,41.3043543]
[1725834218291,6.5901,131.17,131.07,41.3043543]
[1725834218551,6.5901,131.17,131.11,41.3043543]
[1725834218930,6.5901,131.17,131.09,41.3043543]
[1725834219130,6.5901,131.17,131.07,41.3043543]
[1725834219954,6.5901,131.17,131.08,1.52529926]
[1725834221464,6.5901,131.17,131.11,41.3043543]
[1725834221575,15.2565,131.2,131.15,41.3043543]
[1725834222239,15.2565,131.2,131.13,41.3043543]
[1725834222442,15.2565,131.2,131.11,41.3043543]
[1725834222760,1.65750753,131.19,131.09,41.3043543]
[1725834222959,7.75550753,131.19,131.07,41.3043543]
[1725834223271,23.11,131.19,131.07,41.3043543]
[1725834223469,29.208,131.19,131.08,1.52522153]
[1725834223768,23.01160753,131.2,131.07,41.3043543]
[1725834223984,20.0,131.19,131.08,1.52517651]
[1725834225145,20.0,131.19,131.09,41.3043543]
[1725834225572,26.098,131.19,131.08,1.39394112]
[1725834225775,20.0,131.19,131.08,1.52512847]
[1725834226081,15.2565,131.2,131.09,41.3043543]
[1725834226251,15.2565,131.2,131.11,34.26326599]
[1725834226451,15.2565,131.2,131.17,34.26326599]
[1725834226649,0.8501875,131.22,131.18,1.52455079]
[1725834226961,0.8501875,131.22,131.19,34.26326599]
[1725834227162,0.8501875,131.22,131.2,1.52397778]
[1725834227352,0.8501875,131.22,131.19,34.26326599]
[1725834227602,0.8501875,131.22,131.17,34.26326599]
[1725834227747,0.8501875,131.22,131.19,34.26326599]
[1725834227948,0.8501875,131.22,131.21,34.26326599]
[1725834228251,0.8501875,131.22,131.21,42.5762181]
[1725834228450,0.8501875,131.22,131.21,86.05262928]
[1725834228645,0.8501875,131.22,131.17,1.52338262]
[1725834228848,0.8501875,131.22,131.18,42.57629691]
[1725834229153,0.8501875,131.22,131.18,41.05262928]
[1725834229576,0.8501875,131.22,131.18,1.523801]
[1725834229785,0.8501875,131.22,131.16,41.05262928]
[1725834230065,0.8501875,131.22,131.15,20.0]
[1725834230262,0.8501875,131.22,131.15,1.52424298]
[1725834230508,0.8501875,131.22,131.12,1.52449821]
[1725834230792,0.8501875,131.22,131.13,42.57711472]
[1725834231482,0.8501875,131.22,131.15,41.05262928]
[1725834231687,0.8501875,131.22,131.17,41.05262928]
[1725834231857,0.8501875,131.22,131.17,42.57656153]
[1725834232057,0.8501875,131.22,131.15,41.05262928]
[1725834232264,0.8501875,131.22,131.16,1.52406892]
[1725834232669,0.8501875,131.22,131.17,41.05262928]
[1725834232883,0.8501875,131.22,131.15,41.05262928]
[1725834233183,0.8501875,131.22,131.16,20.0]
[1725834233565,0.8501875,131.22,131.1,47.36382928]
[1725834234258,0.8501875,131.22,131.1,41.05262928]
[1725834234463,0.8501875,131.22,131.11,1.52467119]
[1725834234960,0.8501875,131.22,131.1,41.05262928]
[1725834235155,0.8501875,131.22,131.11,1.52465598]
[1725834235389,7.78190753,131.21,131.06,55.25946279]
[1725834235570,7.75510753,131.2,131.06,41.05262928]
[1725834235766,6.0981,131.19,131.04,41.05262928]
[1725834235961,1.65750753,131.18,131.04,41.05262928]
[1725834236290,1.65750753,131.18,131.05,1.52523587]
[1725834236468,45.0,131.18,131.06,41.05262928]
[1725834236670,6.0981,131.19,131.07,1.5251955]
[1725834237035,6.1244,131.21,131.08,42.57786027]
[1725834237063,1.65750753,131.2,131.08,42.57786027]
[1725834237293,6.0982,131.19,131.08,1.52523099]
[1725834237496,6.0982,131.19,131.04,41.05262928]
[1725834237497,15.8412,131.17,131.04,41.05262928]
[1725834237784,15.8412,131.17,131.05,1.52531527]
[1725834239584,15.8412,131.17,131.05,46.52531527]
[1725834240092,15.8412,131.17,131.06,20.0]
[1725834240281,15.8412,131.17,131.07,1.52518259]
[1725834240573,15.8412,131.17,131.06,61.05262928]
[1725834241283,15.8412,131.17,131.06,20.0]
[1725834241284,17.49870753,131.17,131.06,20.0]
[1725834241468,17.49870753,131.17,131.05,20.0]
[1725834241688,23.59770753,131.17,131.05,20.0]
[1725834241979,6.4834,131.12,130.99,1.32842307]
[1725834242169,1.65750753,131.11,130.97,41.05262928]
[1725834242398,66.65750753,131.11,130.98,1.52622895]
[1725834242569,66.65750753,131.11,130.97,41.05262928]
[1725834242570,45.0,131.11,130.99,1.52608583]
[1725834242762,45.0,131.11,130.99,42.57871511]
[1725834242967,1.65750753,131.11,130.99,41.05262928]
[1725834243260,1.65750753,131.11,130.96,1.32785303]
[1725834243461,65.0,131.11,130.98,41.05262928]
[1725834243769,20.0,131.11,131.0,41.05262928]
[1725834244070,6.4834,131.12,131.02,41.05262928]
[1725834244271,6.4834,131.12,131.04,41.05262928]
[1725834244469,6.4834,131.12,131.05,1.52538388]
[1725834244689,21.3001,131.2,131.08,41.05262928]
[1725834244898,22.95760753,131.2,131.08,41.05262928]
[1725834245266,21.3001,131.2,131.08,42.57766989]
[1725834245676,22.95760753,131.2,131.08,41.05262928]
[1725834245989,21.3001,131.2,131.09,1.52506943]
[1725834246164,29.05520753,131.2,131.08,41.05262928]
[1725834246591,21.3001,131.2,131.09,1.52507118]
[1725834246889,1.65750753,131.19,131.06,41.05262928]
[1725834247197,21.65750753,131.19,131.04,41.05262928]
[1725834247398,20.0,131.19,131.06,41.05262928]
[1725834247690,21.3001,131.2,131.07,1.52519661]
[1725834247885,22.95760753,131.2,131.07,65.0]
[1725834248072,29.05520753,131.2,131.07,1.52507358]
[1725834248257,29.05520753,131.2,131.06,41.05262928]
[1725834248506,29.05520753,131.2,131.07,20.0]
[1725834248704,22.95760753,131.2,131.06,41.05262928]
[1725834248895,6.1522,131.16,130.98,9.60013341]
[1725834249073,21.3869,131.1,130.97,41.05262928]
[1725834249283,15.2847,131.1,130.98,1.52629548]
[1725834249489,15.2847,131.1,130.99,1.52613134]
[1725834250201,15.2847,131.1,131.01,41.05262928]
[1725834250390,15.2847,131.1,130.99,1.52563137]
[1725834250585,15.2847,131.1,130.99,42.57826065]
[1725834250962,15.2847,131.1,131.0,20.0]
[1725834251164,15.2847,131.1,130.99,1.52603981]
[1725834251374,15.2847,131.1,130.97,42.57892103]
[1725834251375,45.0,131.09,130.97,42.57892103]
[1725834251632,15.2847,131.1,130.99,1.52629175]
[1725834251772,15.2847,131.1,130.99,42.57892103]
[1725834252533,16.94220753,131.1,130.97,41.05262928]
[1725834252791,15.2847,131.1,130.98,21.52613249]
[1725834252994,16.94220753,131.1,130.98,21.52604416]
[1725834253212,15.2847,131.1,130.99,1.52625825]
[1725834253366,15.2847,131.1,130.99,42.57888753]
[1725834253588,15.2847,131.1,131.01,41.05262928]
[1725834253797,15.2847,131.1,131.02,21.5256659]
[1725834254466,15.2847,131.1,131.03,41.05262928]
[1725834254668,21.6489,131.15,131.05,41.05262928]
[1725834254891,21.6489,131.15,131.06,20.0]
[1725834255283,20.6489,131.15,131.03,41.05262928]
[1725834255480,20.6489,131.15,131.04,21.52558356]
[1725834255981,1.65750753,131.14,131.04,20.0]
[1725834256199,20.6489,131.15,131.05,1.52580593]
[1725834256392,20.6489,131.15,131.05,1.52557248]
[1725834256597,20.6489,131.15,131.05,42.57820176]
[1725834256898,20.6489,131.15,131.06,20.0]
[1725834257079,20.6489,131.15,131.05,42.57806597]
[1725834257282,20.6489,131.15,131.06,20.0]
[1725834257855,1.65750753,131.14,131.03,41.05262928]
[1725834257916,23.11,131.14,131.03,42.57820478]
[1725834258196,22.30640753,131.15,131.04,20.0]
[1725834258396,20.6489,131.15,131.04,20.0]
[1725834258602,20.6489,131.15,131.05,42.57831127]
[1725834258843,20.6489,131.15,131.06,20.0]
[1725834259076,19.6489,131.15,131.07,42.5779541]
[1725834259222,19.6489,131.15,131.08,21.5250591]
[1725834259877,19.6489,131.15,131.08,1.5250591]
[1725834260097,19.6489,131.15,131.08,21.5250591]
[1725834260394,12.6449,131.21,131.09,41.05262928]
[1725834260590,8.20530753,131.21,131.09,41.05262928]
[1725834261306,8.20530753,131.21,131.08,21.5250591]
[1725834261307,6.0984,131.19,131.08,20.0]
[1725834261597,1.65750753,131.18,131.08,20.0]
[1725834261779,1.65750753,131.19,131.06,20.0]
[1725834261986,15.6436,131.18,131.07,41.05262928]
[1725834262192,15.6436,131.18,131.08,21.52512066]
[1725834262795,15.6436,131.18,131.09,41.05262928]
[1725834263093,15.6436,131.18,131.11,41.05262928]
[1725834263291,15.6436,131.18,131.1,21.52473116]
[1725834263292,15.6436,131.18,131.1,20.0]
[1725834263508,15.6436,131.18,131.07,6.051]
[1725834263509,1.65750753,131.17,131.07,41.05262928]
[1725834263807,6.5478,131.21,131.13,41.05262928]
[1725834263978,6.5478,131.21,131.14,1.52453754]
[1725834264281,0.8501875,131.22,131.17,41.05262928]
[1725834264388,0.8501875,131.22,131.18,21.52415716]
[1725834264594,0.8501875,131.22,131.17,41.05262928]
[1725834264901,0.8501875,131.22,131.15,42.57675487]
[1725834265082,0.8501875,131.22,131.16,20.0]
[1725834265281,0.8501875,131.22,131.13,41.05262928]
[1725834265502,0.8501875,131.22,131.14,21.52452067]
[1725834265698,0.8501875,131.22,131.14,20.0]
[1725834266370,0.8501875,131.22,131.15,1.5243893]
[1725834266695,0.8501875,131.22,131.14,20.0]
[1725834267266,0.8501875,131.22,131.12,21.52457669]
[1725834267697,0.8501875,131.22,131.13,41.05262928]
[1725834267896,0.8501875,131.22,131.12,21.52457669]
[1725834267897,0.8501875,131.22,131.15,41.05262928]
[1725834268103,0.8501875,131.22,131.16,21.52417679]
[1725834268405,0.8501875,131.22,131.11,41.05262928]
[1725834268626,0.8501875,131.22,131.12,21.52450313]
[1725834269501,0.8501875,131.22,131.13,1.52464552]
[1725834269827,0.8501875,131.22,131.09,41.05262928]
[1725834269998,1.65750753,131.21,131.09,41.05262928]
[1725834270511,6.9467875,131.22,131.09,41.05262928]
[1725834270512,0.8501875,131.22,131.09,42.57750061]
[1725834270617,15.2997,131.19,131.07,41.05262928]
[1725834270814,1.65750753,131.18,131.04,47.57522928]
[1725834271011,1.65750753,131.17,131.04,47.57522928]
[1725834271318,1.65750753,131.17,131.05,1.52533202]
[1725834271499,15.2997,131.19,131.05,1.52533202]
[1725834271705,15.2997,131.19,131.07,41.05262928]
[1725834271908,15.2997,131.19,131.08,1.52502835]
[1725834272209,15.2997,131.19,131.09,41.05262928]
[1725834272397,15.2997,131.19,131.1,21.52485894]
[1725834272594,15.2997,131.19,131.11,1.5248563]
[1725834272796,15.2997,131.19,131.11,42.57748558]
[1725834273033,15.2997,131.19,131.13,41.05262928]
[1725834273221,15.2997,131.19,131.13,42.57720405]
[1725834273720,15.2997,131.19,131.12,20.0]
[1725834274223,15.2997,131.19,131.12,21.52470303]
[1725834274423,15.2997,131.19,131.12,20.0]
[1725834274624,15.2997,131.19,131.1,21.52485412]
[1725834274831,15.2997,131.19,131.11,1.52485412]
[1725834275120,15.2997,131.19,131.11,42.5774834]
[1725834275306,15.2997,131.19,131.12,20.0]
[1725834275507,15.2997,131.19,131.09,41.05262928]
[1725834275831,16.95720753,131.19,131.07,41.05262928]
[1725834276013,15.2997,131.19,131.09,41.05262928]
[1725834276205,15.2997,131.19,131.1,55.78710075]
[1725834276403,15.2997,131.19,131.11,1.52478485]
[1725834276621,15.2997,131.19,131.11,21.52478485]
[1725834276797,15.2997,131.19,131.12,34.26237372]
[1725834277011,15.2997,131.19,131.12,35.6563093]
[1725834277212,15.2997,131.19,131.12,35.78702076]
[1725834277696,15.2997,131.19,131.13,20.0]
[1725834278581,15.2997,131.19,131.12,34.26237372]
[1725834278727,15.2997,131.19,131.05,7.655]
[1725834278728,16.95720753,131.19,131.1,34.26237372]
[1725834278919,15.2997,131.19,131.08,34.26237372]
[1725834279138,1.65750753,131.18,131.04,34.26237372]
[1725834279429,6.0994,131.16,131.04,34.26237372]
[1725834279635,8.28710753,131.17,131.02,34.26237372]
[1725834279636,15.6095,131.13,131.02,34.26237372]
[1725834279841,1.65750753,131.12,131.02,34.26237372]
[1725834280412,15.6095,131.13,131.02,34.26237372]
[1725834280625,1.65750753,131.12,131.02,34.26237372]
[1725834280823,15.6095,131.13,131.02,34.26237372]
[1725834281010,15.6095,131.13,131.04,34.26237372]
[1725834281214,15.6095,131.13,131.05,1.52556703]
[1725834281432,15.6095,131.13,131.04,34.26237372]
[1725834281935,1.65750753,131.12,131.02,34.26237372]
[1725834282102,1.65750753,131.12,131.03,20.0]
[1725834282759,15.6095,131.13,131.03,21.52580063]
[1725834282937,15.6095,131.13,131.07,34.26237372]
[1725834283163,6.6296,131.17,131.09,34.26237372]
[1725834283164,22.2124,131.17,131.09,34.26237372]
[1725834283350,22.2124,131.17,131.1,1.52503048]
[1725834283532,22.2124,131.17,131.09,34.26237372]
[1725834284410,22.2124,131.17,131.1,1.52508915]
[1725834284626,22.2124,131.17,131.09,30.78746287]
[1725834284820,22.2124,131.17,131.05,7.655]
[1725834285135,22.2124,131.17,131.07,34.26237372]
[1725834285305,1.90636161,131.16,131.07,34.26237372]
[1725834285511,22.2124,131.17,131.07,34.26237372]
[1725834285729,24.11899671,131.17,131.07,34.26237372]
[1725834286040,22.2124,131.17,131.07,34.26237372]
[1725834286435,22.2124,131.17,131.08,1.39322708]
[1725834286636,22.2124,131.17,131.09,34.26237372]
[1725834286945,22.2124,131.17,131.1,1.39231449]
[1725834287270,22.2124,131.17,131.13,34.26237372]
[1725834287439,6.6296,131.17,131.14,1.3915071]
[1725834287620,6.6296,131.17,131.15,1.39130668]
[1725834287930,21.6532,131.21,131.15,1.39130668]
[1725834288325,21.6532,131.21,131.13,34.26237372]
[1725834288739,21.6532,131.21,131.11,34.26237372]
[1725834289177,21.6532,131.21,131.09,34.26237372]
[1725834289313,1.90616209,131.2,131.1,20.0]
[1725834289532,46.90616209,131.2,131.1,20.0]
[1725834290105,27.7503,131.21,131.11,42.51457775]
[1725834290106,21.6532,131.21,131.11,42.51457775]
[1725834290405,21.6532,131.21,131.11,41.12197704]
[1725834290831,21.6532,131.21,131.11,42.51387263]
[1725834291236,21.6532,131.21,131.11,41.12197704]
[1725834291416,21.6532,131.21,131.1,20.0]
[1725834291833,21.6532,131.21,131.11,42.5141941]
[1725834292744,21.6532,131.21,131.13,41.12197704]
[1725834292754,21.6532,131.21,131.15,41.12197704]
[1725834293220,21.6532,131.21,131.13,41.12197704]
[1725834293456,21.6532,131.21,131.14,21.39096047]
[1725834293959,21.6532,131.21,131.15,42.51254598]
[1725834294139,0.8501875,131.22,131.17,41.12197704]
[1725834294320,0.8501875,131.22,131.17,1.38997768]
[1725834294771,0.8501875,131.22,131.16,20.0]
[1725834294772,0.8501875,131.22,131.18,1.39038715]
[1725834295250,0.8501875,131.22,131.16,20.0]
[1725834295421,0.8501875,131.22,131.15,41.12197704]
[1725834295660,0.8501875,131.22,131.16,20.0]
[1725834295832,0.8501875,131.22,131.14,21.39053421]
[1725834296355,0.8501875,131.22,131.14,20.0]
[1725834296927,0.8501875,131.22,131.15,1.39077657]
[1725834297143,0.8501875,131.22,131.15,42.51275361]
[1725834299030,0.8501875,131.22,131.15,41.12197704]
[1725834299243,0.8501875,131.22,131.15,42.5122647]
[1725834300253,0.8501875,131.22,131.16,20.0]
[1725834300428,0.8501875,131.22,131.13,41.12197704]
[1725834300635,0.8501875,131.22,131.14,21.3906298]
[1725834300839,0.8501875,131.22,131.15,1.39028684]
[1725834301035,0.8501875,131.22,131.15,42.51226388]
[1725834301341,0.8501875,131.22,131.17,41.12197704]
[1725834301644,0.8501875,131.22,131.15,1.39028684]
[1725834301645,0.8501875,131.22,131.19,41.12197704]
[1725834301833,0.8501875,131.22,131.2,1.38891116]
[1725834302030,0.8501875,131.22,131.21,1.38891196]
[1725834302271,0.8501875,131.22,131.19,41.12197704]
[1725834302459,0.8501875,131.22,131.17,41.12197704]
[1725834302748,0.8501875,131.22,131.15,41.12197704]
[1725834302953,0.8501875,131.22,131.13,41.12197704]
[1725834303142,0.8501875,131.22,131.11,41.12197704]
[1725834303327,0.8501875,131.22,131.12,1.39121473]
[1725834303529,0.8501875,131.22,131.13,41.12197704]
[1725834303754,1.3529875,131.22,131.14,1.39019745]
[1725834303927,1.3529875,131.22,131.17,41.12197704]
[1725834304429,1.3529875,131.22,131.18,1.38883649]
[1725834304636,1.3529875,131.22,131.18,20.0]
[1725834304931,1.3529875,131.22,131.18,21.38955822]
[1725834305453,1.3529875,131.22,131.19,41.12197704]